fUSD/lending_fUSD_20260309
["ID","MTS","AMOUNT","RATE_DAILY","PERIOD"]
[408062807,1773091846460,-284.25888,0.00019887,2]
[408062808,1773091846471,-772.7716653,0.00019887,2]
[408062810,1773091887034,10000.01,0.000142,2]
[408062811,1773091887922,10000.01,0.000142,2]
[408062812,1773091888034,10000.01,0.000142,2]
[408062813,1773091888142,3114.63679558,0.000142,2]
[408062814,1773091888290,2912.0692053,0.000142,2]
[408062815,1773091892508,200.0,8.219e-05,2]
[408062816,1773091892823,200.0,8.219e-05,2]
[408062817,1773091893114,200.0,8.219e-05,2]
[408062818,1773091893434,200.0,8.219e-05,2]
[408062819,1773091893737,200.0,8.219e-05,2]
[408062820,1773091894047,200.0,8.219e-05,2]
[408062821,1773091894363,200.0,8.219e-05,2]
[408062822,1773091894679,200.0,8.219e-05,2]
[408062823,1773091895022,200.0,8.219e-05,2]
[408062824,1773091895339,200.0,8.219e-05,2]
[408062825,1773091895666,200.0,8.219e-05,2]
[408062826,1773091896033,261.0,8.219e-05,2]
[408062827,1773091936830,500.0,9.2e-05,2]
[408062828,1773091936877,500.0,9.2e-05,2]
[408062829,1773091937326,850.0,9.2e-05,2]
[408062830,1773091937460,500.0,9.2e-05,2]
[408062831,1773091937572,717.74039263,9.2e-05,2]
[408062832,1773091937937,855.65740375,9.2e-05,2]
[408062833,1773091942772,500.0,9.2e-05,2]
[408062834,1773091943254,520.56214502,9.2e-05,2]
[408062835,1773091945145,757.77198964,9.2e-05,2]
[408062836,1773091951732,500.0,9.2e-05,2]
[408062837,1773091952209,802.66179576,9.2e-05,2]
[408062838,1773092013827,200.0,8.8e-05,2]
[408062839,1773092034933,170.36,0.00014,2]
[408062840,1773092236906,500.0,9.157e-05,2]
[408062841,1773092236940,500.0,9.157e-05,2]
[408062842,1773092237550,500.0,9.157e-05,2]
[408062843,1773092241070,500.0,9.157e-05,2]
[408062844,1773092249126,500.0,9.157e-05,2]
[408062845,1773092388015,187.10923726,0.00014128,2]
[408062846,1773092409639,7312.90076274,0.000141,2]
[408062847,1773092409662,10000.01,0.000141,2]
[408062848,1773092409687,5000.01,0.000141,2]
[408062849,1773092409711,5000.01,0.000141,2]
[408062850,1773092409735,2512.06923726,0.000141,2]
[408062851,1773092440621,2487.94076274,0.000141,2]
[408062852,1773092440643,5000.01,0.000141,2]
[408062853,1773092440664,1915.04923726,0.000141,2]
[408062854,1773092443108,1088.118565,0.00014127,2]
[408062855,1773092515043,172.13,0.00014,2]
[408062856,1773092539098,5000.01,0.000141,3]
[408062857,1773092539122,532.99,0.000141,3]
[408062858,1773092548416,500.0,9.157e-05,2]
[408062859,1773092552562,500.0,9.157e-05,2]
[408062860,1773092725464,3467.02,0.000141,5]
[408062861,1773092725485,2065.98,0.000141,5]
[408062862,1773092849620,500.0,9.157e-05,2]
[408062879,1773093031447,-253.83271447,0.00014372,2]
[408062880,1773093031507,-171.76778553,0.00014372,2]
[408062881,1773093031523,-149.23221447,0.000149,2]
[408062882,1773093031543,-37.87702279,0.000149,2]
[408062883,1773093031560,-300.0,0.00014999,2]
[408062886,1773093031577,-1200.0,0.00014999,2]
[408062889,1773093031593,-500.0,0.00015,30]
[408062891,1773093031609,-500.0,0.00015,30]
[408062894,1773093031625,-500.0,0.00015,30]
[408062897,1773093031641,-500.0,0.00015,30]
[408062899,1773093031656,-500.0,0.00015,30]
[408062901,1773093031671,-500.0,0.00015,30]
[408062903,1773093031686,-500.0,0.00015,30]
[408062905,1773093031702,-500.0,0.00015,30]
[408062906,1773093031718,-750.0,0.00015,30]
[408062907,1773093031734,-300.0,0.00015254,2]
[408062908,1773093031750,-150.0,0.00015255,7]
[408062909,1773093031766,-173.574459,0.00015255,7]
[408062910,1773093031784,-197.148918,0.00015255,7]
[408062911,1773093031800,-220.723377,0.00015255,7]
[408062912,1773093031815,-244.297837,0.00015255,7]
[408062913,1773093031831,-267.872296,0.00015255,7]
[408062914,1773093031846,-291.446755,0.00015255,7]
[408062915,1773093031862,-315.021215,0.00015255,7]
[408062916,1773093031877,-338.595674,0.00015255,7]
[408062917,1773093031893,-362.170133,0.00015255,7]
[408062918,1773093031908,-1757.98,0.00015325,2]
[408062919,1773093031924,-500.0,0.00015325,2]
[408062920,1773093031939,-426.70906922,0.00015451,2]
[408062921,1773093031955,-5000.0,0.0001562,2]
[408062922,1773093031971,-472.9197391,0.0001562,2]
[408062923,1773093031987,-209.13395506,0.00015699,2]
[408062924,1773093032002,-325.44038795,0.00015699,2]
[408062925,1773093032019,-500.0,0.0001572,2]
[408062926,1773093032035,-500.0,0.0001572,2]
[408062927,1773093032050,-500.0,0.0001572,2]
[408062928,1773093032067,-500.0,0.0001572,2]
[408062929,1773093032082,-500.0,0.0001572,2]
[408062930,1773093032098,-500.0,0.0001572,2]
[408062931,1773093032113,-500.0,0.0001572,2]
[408062932,1773093032129,-500.0,0.0001572,2]
[408062933,1773093032145,-500.0,0.0001572,2]
[408062934,1773093032159,-500.0,0.0001572,2]
[408062935,1773093032175,-500.0,0.0001572,2]
[408062936,1773093032190,-151.0,0.0001572,2]
[408062937,1773093032207,-151.0,0.0001572,2]
[408062938,1773093032225,-151.0,0.0001572,2]
[408062939,1773093032240,-289.57214403,0.0001572,2]
[408062940,1773093032256,-151.0,0.0001572,2]
[408062941,1773093032273,-151.0,0.0001572,2]
[408062942,1773093032289,-151.0,0.0001572,2]
[408062943,1773093032304,-151.0,0.0001572,2]
[408062944,1773093032319,-163.6216585,0.0001572,2]
[408062945,1773093032334,-1553.01337826,0.00016141,2]
[408062946,1773093032349,-510.0,0.00016383,2]
[408062947,1773093032364,-454.71068769,0.00016473,2]
[408062948,1773093032380,-1680.0,0.00016499,2]
[408062949,1773093032395,-503.0,0.00017,2]
[408062950,1773093032411,-216.59,0.00017049,2]
[408062951,1773093032427,-362.0,0.00017168,2]
[408062952,1773093032443,-500.0,0.00017288,2]
[408062953,1773093032458,-866.0,0.00017588,2]
[408062954,1773093032475,-166.66,0.00017793,2]
[408062955,1773093032490,-152.81,0.00017818,2]
[408062956,1773093032505,-248.36,0.00017878,2]
[408062957,1773093032521,-1456.35918236,0.000179,2]
[408062958,1773093032536,-172.13,0.000179,2]
[408062959,1773093032552,-500.0,0.00017918,2]
[408062960,1773093032567,-1600.0,0.00017945,2]
[408062961,1773093032583,-702.63,0.0001796,2]
[408062962,1773093032598,-28196.27,0.00018013,2]
[408062963,1773093032612,-1008.07,0.00018014,2]
[408062964,1773093032628,-2000.0,0.00018046,2]
[408062965,1773093032649,-1852.42,0.00018052,2]
[408062966,1773093032671,-2351.0,0.00018149,2]
[408062967,1773093032692,-166.66,0.00018167,2]
[408062968,1773093032712,-788.88,0.00018178,2]
[408062969,1773093032730,-3201.063336,0.00018306,7]
[408062970,1773093032749,-500.0,0.00018356,7]
[408062971,1773093032767,-500.0,0.00018356,7]
[408062972,1773093032786,-500.0,0.00018356,7]
[408062973,1773093032804,-228.27116237,0.00018367,2]
[408062974,1773093032823,-500.0,0.00018367,2]
[408062975,1773093032839,-166.66,0.00018542,2]
[408062976,1773093032858,-22510.9632,0.00018603,2]
[408062977,1773093032875,-500.0,0.0001863,2]
[408062978,1773093032893,-503.0,0.00018703,3]
[408062979,1773093032910,-248.36,0.00018871,2]
[408062980,1773093032926,-477.0,0.000189,2]
[408062981,1773093032942,-285.49402331,0.00018913,2]
[408062982,1773093032958,-166.66,0.00018917,2]
[408062983,1773093032974,-1000.0,0.00018999,2]
[408062984,1773093032989,-997.16350561,0.00018999,2]
[408062985,1773093033341,-174.61919141,0.00018999,2]
[408062986,1773093033385,-300.0,0.00018999,2]
[408062987,1773093033407,-693.3919763,0.00018999,2]
[408062988,1773093033417,-1000.0,0.00019178,2]
[408062989,1773093033426,-166.66,0.00019291,2]
[408062990,1773093033436,-168.0,0.00019318,2]
[408062991,1773093033445,-2806.0,0.0001936,2]
[408062992,1773093033456,-95.8726293,0.00019408,2]
[408062993,1773093034281,-72.1273707,0.00019408,2]
[408062994,1773093034290,-203.19964949,0.00019425,2]
[408062995,1773093034302,-500.0,0.00019452,7]
[408062996,1773093034311,-1000.0,0.00019452,2]
[408062997,1773093034320,-1000.0,0.00019547,2]
[408062998,1773093034329,-181.08010149,0.00019547,2]
[408062999,1773093034338,-624.19391779,0.00019547,2]
[408063002,1773093037508,-334.76883885,0.0001797,2]
[408063003,1773093037566,-613.70116115,0.0001797,2]
[408063006,1773093037891,-228.968388,0.00019547,2]
[408063008,1773093037930,-1000.0,0.00019561,2]
[408063009,1773093037940,-984.51976635,0.000196,2]
[408063010,1773093037949,-225.38307338,0.0001961,2]
[408063011,1773093037959,-1884.01835148,0.00019628,2]
[408063012,1773093037968,-1884.01835142,0.00019658,2]
[408063013,1773093037978,-500.0,0.00019661,2]
[408063014,1773093037988,-500.0,0.00019661,2]
[408063015,1773093037998,-500.0,0.00019661,2]
[408063016,1773093038007,-500.0,0.00019661,2]
[408063017,1773093038016,-500.0,0.00019661,2]
[408063018,1773093038027,-500.0,0.00019661,2]
[408063019,1773093038036,-500.0,0.00019661,2]
[408063020,1773093038046,-500.0,0.00019661,2]
[408063021,1773093038057,-500.0,0.00019661,2]
[408063022,1773093038066,-370.69943514,0.00019661,2]
[408063023,1773093038076,-500.0,0.00019661,2]
[408063024,1773093038086,-500.0,0.00019661,2]
[408063025,1773093038097,-500.0,0.00019661,2]
[408063026,1773093038107,-500.0,0.00019661,2]
[408063027,1773093038116,-500.0,0.00019661,2]
[408063028,1773093038126,-500.0,0.00019661,2]
[408063029,1773093038135,-500.0,0.00019661,2]
[408063030,1773093038145,-500.0,0.00019661,2]
[408063031,1773093038159,-500.0,0.00019661,2]
[408063032,1773093038170,-500.0,0.00019661,2]
[408063033,1773093038180,-500.0,0.00019661,2]
[408063034,1773093038190,-500.0,0.00019661,2]
[408063035,1773093038200,-500.0,0.00019661,2]
[408063036,1773093038209,-500.0,0.00019661,2]
[408063037,1773093038220,-500.0,0.00019661,2]
[408063038,1773093038231,-166.66,0.00019666,2]
[408063039,1773093038240,-585.0,0.0001967,5]
[408063040,1773093038250,-500.0,0.00019673,2]
[408063041,1773093038259,-150.0,0.00019673,2]
[408063042,1773093038270,-500.0,0.00019673,2]
[408063043,1773093038279,-500.0,0.00019673,2]
[408063044,1773093038289,-150.0,0.00019673,2]
[408063045,1773093038300,-150.0,0.00019673,2]
[408063046,1773093038310,-150.0,0.00019673,2]
[408063047,1773093038319,-500.0,0.00019673,2]
[408063048,1773093038328,-150.0,0.00019673,2]
[408063049,1773093038337,-667.0,0.00019673,2]
[408063050,1773093038347,-250.0,0.00019673,2]
[408063051,1773093038356,-500.0,0.00019673,2]
[408063052,1773093038365,-150.0,0.00019673,2]
[408063053,1773093038375,-500.0,0.00019673,2]
[408063054,1773093038385,-150.0,0.00019673,2]
[408063055,1773093038394,-1884.01835142,0.00019688,2]
[408063056,1773093038403,-1884.01835142,0.00019719,2]
[408063057,1773093038413,-150.0,0.00019726,2]
[408063058,1773093038422,-150.0,0.00019726,2]
[408063059,1773093038432,-200.0,0.00019726,2]
[408063060,1773093038441,-1000.0,0.00019726,2]
[408063061,1773093038450,-500.0,0.00019727,2]
[408063062,1773093038459,-500.0,0.00019727,2]
[408063063,1773093038468,-500.0,0.00019727,2]
[408063064,1773093038477,-500.0,0.00019727,2]
[408063065,1773093038486,-500.0,0.00019727,2]
[408063066,1773093038495,-500.0,0.00019727,2]
[408063067,1773093038505,-500.0,0.00019727,2]
[408063068,1773093038514,-500.0,0.00019727,2]
[408063069,1773093038524,-500.0,0.00019727,2]
[408063070,1773093038533,-500.0,0.00019728,2]
[408063071,1773093038542,-200.0,0.00019728,2]
[408063072,1773093038551,-500.0,0.00019728,2]
[408063073,1773093038560,-500.0,0.00019728,2]
[408063074,1773093038570,-150.0,0.00019728,2]
[408063075,1773093038579,-150.0,0.00019728,2]
[408063076,1773093038588,-500.0,0.00019728,2]
[408063077,1773093038597,-667.0,0.00019728,2]
[408063078,1773093038606,-500.0,0.00019728,2]
[408063079,1773093038615,-150.0,0.00019728,2]
[408063080,1773093038625,-500.0,0.00019728,2]
[408063081,1773093038634,-150.0,0.00019728,2]
[408063082,1773093038643,-172.87392778,0.00019737,2]
[408063083,1773093038652,-1000.0,0.0001974,2]
[408063084,1773093038661,-1000.0,0.00019743,2]
[408063085,1773093038671,-1000.0,0.00019748,2]
[408063086,1773093038680,-1884.01835142,0.00019749,2]
[408063087,1773093038691,-150.0,0.0001975,2]
[408063088,1773093038700,-2500.0,0.00019757,2]
[408063089,1773093038709,-168.0,0.00019762,2]
[408063090,1773093038719,-1000.0,0.00019774,2]
[408063091,1773093038728,-1000.0,0.00019775,2]
[408063092,1773093038737,-1884.01835142,0.00019779,2]
[408063093,1773093038747,-150.0,0.00019781,2]
[408063094,1773093038757,-150.0,0.00019781,2]
[408063095,1773093038766,-500.0,0.00019783,2]
[408063096,1773093038776,-500.0,0.00019783,2]
[408063097,1773093038789,-500.0,0.00019783,2]
[408063098,1773093038812,-150.0,0.00019783,2]
[408063099,1773093038826,-500.0,0.00019783,2]
[408063100,1773093038836,-667.0,0.00019783,2]
[408063101,1773093038846,-500.0,0.00019783,2]
[408063102,1773093038856,-150.0,0.00019783,2]
[408063103,1773093038866,-500.0,0.00019783,2]
[408063104,1773093038877,-150.0,0.00019783,2]
[408063105,1773093038888,-1000.0,0.00019789,2]
[408063106,1773093038898,-168.0,0.00019799,2]
[408063107,1773093038908,-5000.0,0.000198,2]
[408063108,1773093038918,-1325.21968,0.000198,2]
[408063109,1773093038928,-1325.21968,0.000198,2]
[408063110,1773093038938,-1551.49873,0.000198,2]
[408063111,1773093038947,-150.0,0.00019802,2]
[408063112,1773093038956,-1884.01835142,0.00019809,2]
[408063113,1773093038966,-1000.0,0.00019818,2]
[408063114,1773093038975,-1000.0,0.00019819,2]
[408063115,1773093038994,-150.0,0.00019821,2]
[408063116,1773093039005,-150.0,0.00019823,2]
[408063117,1773093039014,-150.0,0.00019824,2]
[408063118,1773093039024,-150.0,0.00019836,2]
[408063119,1773093039033,-225.29398025,0.00019836,2]
[408063120,1773093039042,-1000.0,0.00019837,2]
[408063121,1773093039051,-500.0,0.00019837,2]
[408063122,1773093039060,-500.0,0.00019837,2]
[408063123,1773093039070,-500.0,0.00019837,2]
[408063124,1773093039079,-150.0,0.00019837,2]
[408063125,1773093039088,-500.0,0.00019837,2]
[408063126,1773093039097,-667.0,0.00019837,2]
[408063127,1773093039107,-500.0,0.00019837,2]
[408063128,1773093039117,-259.80865041,0.00019837,2]
[408063129,1773093039127,-500.0,0.00019837,2]
[408063130,1773093039136,-1884.01835142,0.0001984,2]
[408063131,1773093039145,-1000.0,0.00019844,2]
[408063132,1773093039156,-168.0,0.00019853,2]
[408063133,1773093039165,-150.0,0.00019859,2]
[408063134,1773093039174,-248.36,0.00019864,2]
[408063135,1773093039184,-195.0,0.00019867,2]
[408063136,1773093039194,-150.0,0.00019868,2]
[408063137,1773093039203,-2612.608,0.00019884,2]
[408063138,1773093039214,-1000.0,0.00019886,2]
[408063139,1773093039228,-169.169,0.00019887,2]
[408063140,1773093039237,-181.92,0.00019887,2]
[408063141,1773093039246,-181.92,0.00019889,2]
[408063142,1773093039255,-150.0,0.0001989,2]
[408063143,1773093039266,-500.0,0.00019892,2]
[408063144,1773093039275,-500.0,0.00019892,2]
[408063145,1773093039291,-500.0,0.00019892,2]
[408063146,1773093039301,-150.0,0.00019892,2]
[408063147,1773093039312,-667.0,0.00019892,2]
[408063148,1773093039322,-164.04850966,0.00019892,2]
[408063149,1773093039331,-500.0,0.00019892,2]
[408063150,1773093039341,-17497.02261249,0.00019895,2]
[408063151,1773093039352,-17497.02261248,0.00019896,2]
[408063152,1773093039363,-17497.02261248,0.00019896,2]
[408063153,1773093039372,-17497.02261248,0.00019897,2]
[408063154,1773093039382,-151.0,0.00019897,2]
[408063155,1773093039391,-17497.02261248,0.00019897,2]
[408063156,1773093039401,-17497.02261248,0.00019898,2]
[408063157,1773093039411,-500.0,0.00019898,2]
[408063158,1773093039421,-500.0,0.00019898,2]
[408063159,1773093039431,-17497.02261248,0.00019898,2]
[408063160,1773093039444,-17497.02261248,0.00019899,2]
[408063161,1773093039455,-500.0,0.00019899,2]
[408063162,1773093039464,-500.0,0.00019899,2]
[408063163,1773093039473,-500.0,0.00019899,2]
[408063164,1773093039482,-500.0,0.00019899,2]
[408063165,1773093039493,-500.0,0.00019899,2]
[408063166,1773093039505,-500.0,0.00019899,2]
[408063167,1773093039515,-500.0,0.00019899,2]
[408063168,1773093039526,-471.36598327,0.00019899,2]
[408063169,1773093039538,-500.0,0.00019899,2]
[408063170,1773093039548,-500.0,0.00019899,2]
[408063172,1773093039559,-500.0,0.00019899,2]
[408063174,1773093039570,-500.0,0.00019899,2]
[408063175,1773093039581,-500.0,0.00019899,2]
[408063176,1773093039590,-500.0,0.00019899,2]
[408063177,1773093039601,-500.0,0.00019899,2]
[408063178,1773093039610,-500.0,0.00019899,2]
[408063179,1773093039620,-500.0,0.00019899,2]
[408063181,1773093039629,-500.0,0.00019899,2]
[408063183,1773093039638,-500.0,0.00019899,2]
[408063184,1773093039648,-500.0,0.00019899,2]
[408063186,1773093039657,-500.0,0.00019899,2]
[408063187,1773093039668,-500.0,0.00019899,2]
[408063188,1773093039676,-500.0,0.00019899,2]
[408063189,1773093039687,-17497.02261248,0.00019899,2]
[408063190,1773093039697,-10000.0,0.000199,2]
[408063191,1773093039706,-366.9,0.000199,2]
[408063192,1773093039715,-7049.5981,0.000199,2]
[408063193,1773093039724,-5000.0,0.000199,2]
[408063194,1773093039733,-1505.21619488,0.000199,2]
[408063195,1773093039742,-1551.49873,0.000199,2]
[408063196,1773093039751,-17497.02261248,0.000199,2]
[408063197,1773093039760,-218.8354796,0.000199,2]
[408063198,1773093039769,-402.81468298,0.000199,3]
[408063199,1773093039779,-544.85773056,0.000199,2]
[408063200,1773093039788,-2225.0,0.000199,2]
[408063201,1773093039797,-1000.0,0.00019902,2]
[408063202,1773093039806,-150.0,0.00019917,2]
[408063203,1773093039816,-1000.0,0.00019918,2]
[408063204,1773093039825,-250.0,0.00019922,2]
[408063205,1773093039835,-1000.0,0.00019927,2]
[408063206,1773093039844,-1000.0,0.0001993,2]
[408063207,1773093039853,-151.0,0.00019931,2]
[408063208,1773093039863,-2837.69,0.00019937,2]
[408063209,1773093039872,-3180.17,0.00019937,2]
[408063210,1773093039881,-542.0,0.00019943,2]
[408063211,1773093039890,-250.0,0.00019945,2]
[408063212,1773093039900,-500.0,0.00019947,2]
[408063213,1773093039910,-446.0,0.00019947,2]
[408063214,1773093039921,-500.0,0.00019947,2]
[408063215,1773093039932,-250.0,0.00019947,2]
[408063216,1773093039942,-667.0,0.00019947,2]
[408063217,1773093039951,-500.0,0.00019947,2]
[408063218,1773093039961,-250.0,0.00019957,2]
[408063219,1773093039971,-150.0,0.0001996,2]
[408063220,1773093039982,-181.92,0.00019962,2]
[408063221,1773093039991,-195.0,0.00019963,2]
[408063222,1773093040002,-2131.0,0.00019964,2]
[408063223,1773093040012,-151.0,0.00019966,2]
[408063224,1773093040021,-400.0,0.0001997,2]
[408063225,1773093040030,-400.0,0.0001997,2]
[408063226,1773093040040,-400.0,0.0001997,2]
[408063227,1773093040050,-400.0,0.0001997,2]
[408063228,1773093040059,-402.18256312,0.0001997,2]
[408063229,1773093040069,-500.0,0.00019971,2]
[408063230,1773093040079,-500.0,0.00019971,2]
[408063231,1773093040089,-500.0,0.00019971,2]
[408063232,1773093040098,-500.0,0.00019971,2]
[408063233,1773093040107,-500.0,0.00019971,2]
[408063234,1773093040117,-500.0,0.00019972,2]
[408063235,1773093040127,-500.0,0.00019972,2]
[408063236,1773093040136,-500.0,0.00019972,2]
[408063237,1773093040146,-1262.83,0.00019972,2]
[408063238,1773093040155,-1262.83,0.00019972,2]
[408063239,1773093040164,-1262.83,0.00019972,2]
[408063240,1773093040173,-1316.52,0.00019972,2]
[408063241,1773093040183,-1316.52,0.00019972,2]
[408063242,1773093040193,-500.0,0.00019972,2]
[408063243,1773093040202,-2752.59,0.00019972,2]
[408063244,1773093040212,-37212.0,0.00019973,2]
[408063245,1773093040224,-250.0,0.00019973,2]
[408063246,1773093040233,-1000.0,0.00019974,2]
[408063247,1773093040243,-150.0,0.00019976,2]
[408063248,1773093040252,-1000.0,0.00019981,2]
[408063249,1773093040262,-1000.0,0.00019984,2]
[408063250,1773093040272,-181.92,0.00019989,2]
[408063251,1773093040282,-181.92,0.00019989,2]
[408063252,1773093040293,-220.36614211,0.0001999,2]
[408063253,1773093040303,-500.0,0.00019994,2]
[408063254,1773093040312,-500.0,0.00019994,2]
[408063255,1773093040322,-500.0,0.00019994,2]
[408063256,1773093040331,-1316.52,0.00019994,2]
[408063257,1773093040340,-500.0,0.00019994,2]
[408063258,1773093040350,-500.0,0.00019994,2]
[408063259,1773093040359,-500.0,0.00019994,2]
[408063260,1773093040368,-500.0,0.00019995,2]
[408063261,1773093040378,-1262.83,0.00019995,2]
[408063262,1773093040387,-540.14,0.00019995,2]
[408063263,1773093040397,-500.0,0.00019995,2]
[408063264,1773093040406,-1000.0,0.00019995,2]
[408063265,1773093040416,-151.0,0.00019997,2]
[408063266,1773093040425,-500.0,0.00019998,2]
[408063267,1773093040435,-500.0,0.00019998,2]
[408063268,1773093040444,-500.0,0.00019998,2]
[408063269,1773093040453,-500.0,0.00019998,2]
[408063270,1773093040463,-1316.52,0.00019998,2]
[408063271,1773093040477,-500.0,0.00019998,2]
[408063272,1773093040486,-500.0,0.00019998,2]
[408063273,1773093040502,-500.0,0.00019998,2]
[408063274,1773093040513,-500.0,0.00019998,2]
[408063275,1773093040523,-2752.59,0.00019998,2]
[408063276,1773093040532,-500.0,0.00019999,2]
[408063277,1773093040542,-263.81956629,0.00019999,2]
[408063278,1773093040551,-1262.83,0.00019999,2]
[408063279,1773093040561,-1262.83,0.00019999,2]
[408063280,1773093040571,-1262.83,0.00019999,2]
[408063281,1773093040582,-1262.83,0.00019999,2]
[408063282,1773093040593,-1262.83,0.00019999,2]
[408063283,1773093040603,-1262.83,0.00019999,2]
[408063284,1773093040612,-1262.83,0.00019999,2]
[408063285,1773093040623,-1262.83,0.00019999,2]
[408063286,1773093040633,-1262.83,0.00019999,2]
[408063287,1773093040643,-1262.83,0.00019999,2]
[408063288,1773093040653,-1262.83,0.00019999,2]
[408063289,1773093040662,-1262.83,0.00019999,2]
[408063290,1773093040672,-1262.83,0.00019999,2]
[408063291,1773093040682,-1262.83,0.00019999,2]
[408063292,1773093040692,-1262.83,0.00019999,2]
[408063293,1773093040702,-1262.83,0.00019999,2]
[408063294,1773093040712,-1262.83,0.00019999,2]
[408063295,1773093040721,-1262.83,0.00019999,2]
[408063296,1773093040732,-1262.83,0.00019999,2]
[408063297,1773093040742,-1262.97400887,0.00019999,2]
[408063298,1773093040753,-500.0,0.00019999,2]
[408063299,1773093040762,-500.0,0.00019999,2]
[408063300,1773093040772,-500.0,0.00019999,2]
[408063301,1773093040781,-508.82940368,0.00019999,2]
[408063302,1773093040790,-500.0,0.00019999,2]
[408063303,1773093040801,-500.0,0.00019999,2]
[408063304,1773093040811,-500.0,0.00019999,2]
[408063305,1773093040820,-500.0,0.00019999,2]
[408063306,1773093040830,-500.0,0.00019999,2]
[408063307,1773093040839,-500.0,0.00019999,2]
[408063308,1773093040849,-500.0,0.00019999,2]
[408063309,1773093040858,-500.0,0.00019999,2]
[408063310,1773093040868,-500.0,0.00019999,2]
[408063311,1773093040877,-500.0,0.00019999,2]
[408063312,1773093040886,-500.0,0.00019999,2]
[408063313,1773093040897,-500.0,0.00019999,2]
[408063314,1773093040906,-500.0,0.00019999,2]
[408063315,1773093040915,-329.72,0.00019999,2]
[408063316,1773093040924,-1316.52,0.00019999,2]
[408063317,1773093040934,-1316.52,0.00019999,2]
[408063318,1773093040943,-1316.52,0.00019999,2]
[408063319,1773093040952,-1316.52,0.00019999,2]
[408063320,1773093040961,-1316.52,0.00019999,2]
[408063321,1773093040971,-1316.52,0.00019999,2]
[408063322,1773093040980,-1316.52,0.00019999,2]
[408063323,1773093040989,-1316.52,0.00019999,2]
[408063324,1773093040999,-1316.52,0.00019999,2]
[408063325,1773093041008,-1316.52,0.00019999,2]
[408063326,1773093041019,-1316.52,0.00019999,2]
[408063327,1773093041028,-1316.52,0.00019999,2]
[408063328,1773093041038,-1316.52,0.00019999,2]
[408063329,1773093041048,-1316.52,0.00019999,2]
[408063330,1773093041058,-1316.52,0.00019999,2]
[408063331,1773093041067,-1316.52,0.00019999,2]
[408063332,1773093041076,-1316.52,0.00019999,2]
[408063333,1773093041289,-1316.52,0.00019999,2]
[408063334,1773093041301,-1316.52,0.00019999,2]
[408063335,1773093041311,-1316.69805738,0.00019999,2]
[408063336,1773093041320,-500.0,0.00019999,2]
[408063337,1773093041330,-500.0,0.00019999,2]
[408063338,1773093041339,-500.0,0.00019999,2]
[408063339,1773093041348,-500.0,0.00019999,2]
[408063340,1773093041358,-500.0,0.00019999,2]
[408063341,1773093041367,-500.0,0.00019999,2]
[408063342,1773093041376,-500.0,0.00019999,2]
[408063343,1773093041385,-500.0,0.00019999,2]
[408063344,1773093041394,-532.85507094,0.00019999,2]
[408063345,1773093041403,-500.0,0.00019999,2]
[408063346,1773093041413,-500.0,0.00019999,2]